[Event "Romanian Superliga 2024"]
[Site "Mamaia"]
[Date "2024.09.28"]
[Round "1.22"]
[White "Ilinca, Felix-Antonio"]
[Black "Sachilaru, Alexandru"]
[Result "1/2-1/2"]
[ECO "E73"]
[WhiteElo "2417"]
[BlackElo "2265"]
[Annotator "ChessBase"]
[PlyCount "100"]
[EventDate "2024.09.26"]
[EventType "team-tourn"]
[EventCountry "ROU"]
[SourceTitle "playchess.com"]
[Source "ChessBase"]
[SourceQuality "1"]
[TimeControl "40/5400+30:1800+30"]

1. d4 {[%emt 0:00:12]} Nf6 {[%emt 0:00:38]} 2. c4 {[%emt 0:00:22]} g6 {[%emt 0:00:44]} 3. Nc3 {[%emt 0:00:21]} Bg7 {[%emt 0:00:05]} 4. e4 {[%emt 0:00:21]} d6 {[%emt 0:00:27]} 5. Be2 {[%emt 0:00:24]} O-O {[%emt 0:01:03]} 6. Be3 {[%emt 0:00:23]} Nc6 {[%emt 0:04:38]} 7. d5 {[%emt 0:00:31]} Ne5 {[%emt 0:02:01]} 8. f4 {[%emt 0:02:54]} Neg4 {[%emt 0:02:11]} 9. Bd2 {[%emt 0:00:25]} Nh6 {[%emt 0:06:45]} 10. Nf3 {[%emt 0:00:41]} e6 {[%emt 0:05:00]} 11. dxe6 {[%emt 0:04:37]} fxe6 {[%emt 0:03:48]} 12. Ng5 {[%emt 0:03:07]} Nf7 {[%emt 0:10:16]} 13. h4 {[%emt 0:06:06]} e5 {[%emt 0:09:36]} 14. c5 {[%emt 0:07:37]} exf4 {[%emt 0:17:39]} 15. Qb3 {[%emt 0:12:46]} d5 {[%emt 0:04:53]} 16. exd5 {[%emt 0:17:35]} Nxg5 {[%emt 0:07:58]} 17. hxg5 {[%emt 0:00:20]} Ng4 {[%emt 0:02:25]} 18. d6+ {[%emt 0:06:49]} Kh8 {[%emt 0:00:11]} 19. Ne4 {[%emt 0:04:14]} Bf5 {[%emt 0:03:22]} 20. Qh3 {[%emt 0:15:23]} h5 {[%emt 0:01:02]} 21. gxh6 {[%emt 0:00:24]} Be5 {[%emt 0:04:05]} 22. Bxg4 {[%emt 0:02:51]} Bxe4 {[%emt 0:00:06]} 23. O-O-O {[%emt 0:04:12]} cxd6 {[%emt 0:00:44]} 24. Rhe1 {[%emt 0:01:40]} d5 {[%emt 0:00:54]} 25. Bf3 {[%emt 0:03:01]} Qf6 {[%emt 0:02:55]} 26. Bxe4 {[%emt 0:01:01]} dxe4 {[%emt 0:01:54]} 27. Rxe4 {[%emt 0:00:33]} Bxb2+ {[%emt 0:01:45]} 28. Kb1 {[%emt 0:00:35]} Ba1 {[%emt 0:04:57]} 29. Bc1 {[%emt 0:01:53]} Rad8 {[%emt 0:01:07]} 30. Rxd8 {[%emt 0:01:21]} Rxd8 {[%emt 0:00:10]} 31. Rxf4 {[%emt 0:01:32]} Qe5 {[%emt 0:00:10]} 32. Qf3 {[%emt 0:00:32]} Qxc5 {[%emt 0:00:27]} 33. Ba3 {[%emt 0:00:42]} Qe5 {[%emt 0:02:03]} 34. Re4 {[%emt 0:00:47]} Qf6 {[%emt 0:00:23]} 35. Qxf6+ {[%emt 0:00:16]} Bxf6 {[%emt 0:00:16]} 36. Re6 {[%emt 0:00:34]} Bg5 {[%emt 0:00:39]} 37. Rxg6 {[%emt 0:00:41]} Rd1+ {[%emt 0:00:27]} 38. Kc2 {[%emt 0:00:32]} Rd2+ {[%emt 0:00:14]} 39. Kb3 {[%emt 0:00:35]} Rxg2 {[%emt 0:00:53]} 40. Bf8 {[%emt 0:00:00]} Rg3+ {[%emt 0:00:00]} 41. Kc4 {[%emt 0:01:34]} Bh4 {[%emt 0:03:14]} 42. Re6 {[%emt 0:01:01]} Kh7 {[%emt 0:01:15]} 43. Bg7 {[%emt 0:00:50]} Bg5 {[%emt 0:01:02]} 44. a4 {[%emt 0:05:00]} Rg4+ {[%emt 0:01:30]} 45. Kb3 {[%emt 0:00:35]} Rg3+ {[%emt 0:00:40]} 46. Ka2 {[%emt 0:01:09]} Rg4 {[%emt 0:00:30]} 47. Kb3 {[%emt 0:02:48]} Rg3+ {[%emt 0:00:22]} 48. Ka2 {[%emt 0:01:05]} Rg4 {[%emt 0:00:11]} 49. Kb3 {[%emt 0:00:33]} Rg3+ {[%emt 0:00:17]} 50. Ka2 {[%emt 0:00:10]} Rg4 {[%emt 0:00:26]} 1/2-1/2

[Event "Romanian Superliga 2024"]
[Site "Mamaia"]
[Date "2024.09.28"]
[Round "1.23"]
[White "Patrascu, Catalin-Lucian"]
[Black "Magold, Filip"]
[Result "0-1"]
[ECO "B80"]
[WhiteElo "2298"]
[BlackElo "2406"]
[Annotator "ChessBase"]
[PlyCount "70"]
[EventDate "2024.09.26"]
[EventType "team-tourn"]
[EventCountry "ROU"]
[SourceTitle "playchess.com"]
[Source "ChessBase"]
[SourceQuality "1"]
[TimeControl "40/5400+30:1800+30"]

1. e4 {[%emt 0:00:03]} c5 {[%emt 0:00:27]} 2. Nf3 {[%emt 0:00:06]} d6 {[%emt 0:00:05]} 3. d4 {[%emt 0:00:08]} cxd4 {[%emt 0:00:05]} 4. Nxd4 {[%emt 0:00:03]} Nf6 {[%emt 0:00:07]} 5. Nc3 {[%emt 0:00:06]} a6 {[%emt 0:00:05]} 6. Be3 {[%emt 0:00:21]} e6 {[%emt 0:00:07]} 7. f3 {[%emt 0:08:08]} b5 {[%emt 0:00:13]} 8. a3 {[%emt 0:03:22]} h5 {[%emt 0:00:32]} 9. Qd2 {[%emt 0:01:22]} Nbd7 {[%emt 0:01:35]} 10. Nb3 {[%emt 0:04:01]} Bb7 {[%emt 0:05:28]} 11. Qf2 {[%emt 0:08:25]} Rc8 {[%emt 0:01:43]} 12. Bd3 {[%emt 0:02:55]} Be7 {[%emt 0:03:41]} 13. O-O {[%emt 0:01:39]} h4 {[%emt 0:06:36]} 14. Rfe1 {[%emt 0:16:39]} h3 {[%emt 0:15:39]} 15. g4 {[%emt 0:04:03]} Ne5 {[%emt 0:06:10]} 16. Rad1 {[%emt 0:07:53]} Nfd7 {[%emt 0:15:34]} 17. Bf4 {[%emt 0:08:31]} g5 {[%emt 0:06:45]} 18. Bg3 {[%emt 0:05:52]} Qc7 {[%emt 0:06:55]} 19. Be2 {[%emt 0:07:04]} Nf8 {[%emt 0:05:14]} 20. Bxe5 {[%emt 0:09:29]} dxe5 {[%emt 0:00:06]} 21. Rd2 {[%emt 0:05:50]} Ng6 {[%emt 0:02:43]} 22. Red1 {[%emt 0:00:58]} Bc6 {[%emt 0:07:15]} 23. Nc5 {[%emt 0:01:07]} Ra8 {[%emt 0:01:39]} 24. b4 {[%emt 0:02:19]} Nf4 {[%emt 0:01:44]} 25. Bf1 {[%emt 0:00:48]} Kf8 {[%emt 0:00:40]} 26. Ne2 {[%emt 0:00:59]} a5 {[%emt 0:02:19]} 27. Nxf4 {[%emt 0:00:19]} gxf4 {[%emt 0:00:01]} 28. c4 {[%emt 0:01:08]} axb4 {[%emt 0:02:43]} 29. cxb5 {[%emt 0:00:35]} Bxb5 {[%emt 0:01:05]} 30. axb4 {[%emt 0:00:04]} Bh4 {[%emt 0:00:05]} 31. Qxh4 {[%emt 0:01:07]} Rxh4 {[%emt 0:00:05]} 32. Bxb5 {[%emt 0:00:01]} Qb6 {[%emt 0:00:10]} 33. Bf1 {[%emt 0:01:03]} Qxb4 {[%emt 0:00:09]} 34. Nd7+ {[%emt 0:00:12]} Kg7 {[%emt 0:00:07]} 35. Kh1 {[%emt 0:00:28]} Ra1 {[%emt 0:00:36]} 0-1

[Event "Romanian Superliga 2024"]
[Site "Mamaia"]
[Date "2024.09.28"]
[Round "1.24"]
[White "David, Alexandru-Vasile"]
[Black "Popescu, Daniel-Vasilica"]
[Result "1-0"]
[ECO "E49"]
[WhiteElo "2345"]
[BlackElo "1953"]
[Annotator "ChessBase"]
[PlyCount "79"]
[EventDate "2024.09.26"]
[EventType "team-tourn"]
[EventCountry "ROU"]
[SourceTitle "playchess.com"]
[Source "ChessBase"]
[SourceQuality "1"]
[TimeControl "40/5400+30:1800+30"]

1. d4 {[%emt 0:00:06]} Nf6 {[%emt 0:00:13]} 2. c4 {[%emt 0:00:10]} e6 {[%emt 0:00:19]} 3. Nc3 {[%emt 0:00:08]} Bb4 {[%emt 0:00:17]} 4. e3 {[%emt 0:00:39]} O-O {[%emt 0:00:19]} 5. a3 {[%emt 0:00:11]} Bxc3+ {[%emt 0:00:17]} 6. bxc3 {[%emt 0:00:06]} d5 {[%emt 0:02:58]} 7. cxd5 {[%emt 0:00:22]} exd5 {[%emt 0:00:07]} 8. Bd3 {[%emt 0:00:06]} Re8 {[%emt 0:01:07]} 9. Ne2 {[%emt 0:00:26]} Nbd7 {[%emt 0:00:43]} 10. O-O {[%emt 0:00:26]} Nf8 {[%emt 0:02:25]} 11. f3 {[%emt 0:01:58]} c5 {[%emt 0:09:02]} 12. Ng3 {[%emt 0:04:38]} Bd7 {[%emt 0:05:43]} 13. Qd2 {[%emt 0:08:01]} Qa5 {[%emt 0:04:46]} 14. e4 {[%emt 0:02:03]} cxd4 {[%emt 0:27:24]} 15. cxd4 {[%emt 0:00:23]} Qxd2 {[%emt 0:00:05]} 16. Bxd2 {[%emt 0:00:06]} dxe4 {[%emt 0:00:20]} 17. fxe4 {[%emt 0:00:06]} Rac8 {[%emt 0:21:11]} 18. a4 {[%emt 0:09:16]} Be6 {[%emt 0:08:26]} 19. e5 {[%emt 0:07:24]} Nd5 {[%emt 0:01:04]} 20. Ne4 {[%emt 0:00:05]} Re7 {[%emt 0:02:14]} 21. Nd6 {[%emt 0:05:55]} Rd8 {[%emt 0:00:40]} 22. Be4 {[%emt 0:04:00]} f6 {[%emt 0:01:57]} 23. Rac1 {[%emt 0:10:04]} h6 {[%emt 0:02:01]} 24. Rc5 {[%emt 0:01:08]} Nb6 {[%emt 0:06:26]} 25. a5 {[%emt 0:03:49]} Na4 {[%emt 0:00:30]} 26. Rb5 {[%emt 0:01:04]} fxe5 {[%emt 0:01:14]} 27. dxe5 {[%emt 0:00:55]} a6 {[%emt 0:00:30]} 28. Rxb7 {[%emt 0:00:54]} Rxb7 {[%emt 0:00:10]} 29. Bxb7 {[%emt 0:00:06]} Nc5 {[%emt 0:00:24]} 30. Bf3 {[%emt 0:02:06]} Ng6 {[%emt 0:01:09]} 31. Be3 {[%emt 0:00:33]} Nd7 {[%emt 0:00:59]} 32. Bb6 {[%emt 0:01:14]} Rb8 {[%emt 0:00:47]} 33. Bb7 {[%emt 0:02:03]} Nxb6 {[%emt 0:00:38]} 34. axb6 {[%emt 0:00:04]} a5 {[%emt 0:00:33]} 35. Ra1 {[%emt 0:00:21]} Nxe5 {[%emt 0:01:02]} 36. Re1 Nd3 37. Rxe6 Nc5 38. Re7 Nxb7 39. Rxb7 Rd8 40. Nc4 1-0

[Event "Romanian Superliga 2024"]
[Site "Mamaia"]
[Date "2024.09.30"]
[Round "3.1"]
[White "Kozak, Adam"]
[Black "Hamitevici, Vladimir"]
[Result "1-0"]
[ECO "D10"]
[WhiteElo "2609"]
[BlackElo "2419"]
[Annotator "TA"]
[PlyCount "63"]
[EventDate "2024.09.26"]
[EventType "team-tourn"]
[EventCountry "ROU"]
[SourceTitle "playchess.com"]
[Source "ChessBase"]
[SourceQuality "1"]
[TimeControl "40/5400+30:1800+30"]

{[%evp 10,63,25,20,29,24,20,22,23,21,32,34,24,7,50,62,53,46,53,56,95,76,98,88,93,80,137,132,135,79,79,25,215,207,204,215,212,210,205,207,314,317,308,284,290,289,480,476,476,469,514,447,527,527,527,491]} 1. d4 {[%emt 0:00:05]} d5 {[%emt 0:01:29]} 2. c4 {[%emt 0:00:28]} c6 {[%emt 0:01:02]} 3. Nc3 {[%emt 0:00:29]} Nf6 {[%emt 0:01:06]} 4. e3 {[%emt 0:00:45]} Bf5 {[%emt 0:01:45]} 5. cxd5 {[%emt 0:00:44]} cxd5 {[%emt 0:00:08]} 6. Qb3 {[%emt 0:00:04]} Nc6 {[%emt 0:02:49][%cal Bb8c6,Bc6e5,Be5c4,Bc4b2][%mdl 32]} 7. Qxb7 {[%emt 0:00:39]} Bd7 {[%emt 0:00:06] White must now prevent ...Rb8.} 8. Qb3 {[%emt 0:00:14][%cal Og1f3]} Rb8 {[%emt 0:00:04] The position is equal.} 9. Qd1 {[%emt 0:00:15]} e5 {[%emt 0:00:08]} 10. Nge2 {[%emt 0:03:36]} Bd6 {[%emt 0:01:35]} 11. dxe5 {[%emt 0:01:08]} Nxe5 {[%emt 0:02:08]} 12. Nf4 {[%emt 0:00:25][%cal Of1e2]} O-O {[%emt 0:01:53]} 13. Be2 {[%emt 0:02:02][%cal Oe1g1]} Bc6 {[%emt 0:08:30]} 14. O-O $1 {[%emt 0:00:35][%cal Ob2b3]} (14. Nfxd5 $2 Nxd5 15. Nxd5 Bxd5 $19) 14... Nc4 {[%emt 0:04:00]} 15. Ncxd5 {[%emt 0:16:33]} (15. Nfxd5 $6 Nxd5 16. Bxc4 Nxc3 17. bxc3 Bxh2+ 18. Kxh2 Qh4+ 19. Kg1 Qxc4 $14) (15. Qc2 {looks sharper.} Nb6 16. Nb5 Bxb5 17. Bxb5 Nc4 18. a4) 15... Nxb2 {[%emt 0:02:41]} 16. Bxb2 {[%emt 0:15:55]} (16. Qd4 {seems wilder.} Nxd5 17. Bxb2 Qg5 18. Nxd5 Bxd5 19. g3) 16... Rxb2 {[%emt 0:10:53]} 17. Qc1 {[%emt 0:00:50][%csl LRb2,LRc6]} Nxd5 {[%emt 0:21:08]} ({Black should try} 17... Be5 18. Qxc6 Nxd5) 18. Qxb2 $16 {[%emt 0:07:39]} Bxf4 {[%emt 0:10:49]} 19. exf4 {[%emt 0:12:18]} (19. Rfc1 $142 $1 {[%cal Oe3f4]} Bg5 20. Rxc6) 19... Nxf4 {[%emt 0:01:17][%cal Od8g5] ...Qg5! would now be deadly.} 20. Rfd1 $1 {[%emt 0:14:02]} Qh4 {[%emt 0:10:36] [#] Black cannot hold the game after this.} (20... Qg5 $11 21. g3 Qf5 22. gxf4 Qg6+ 23. Kf1 Qg2+ 24. Ke1 Qg1+ 25. Kd2 Qxf2) 21. g3 $1 $18 {[%emt 0:06:29]} (21. Bf1 Nh3+ 22. Kh1 Nxf2+ (22... Qxf2 23. Qd4 $17) 23. Kg1 Nxd1 24. Rxd1 Qg5 $14) 21... Nxe2+ {[%emt 0:16:20]} 22. Qxe2 {[%emt 0:00:12]} Qf6 {[%emt 0:00:01]} 23. Re1 {[%emt 0:01:29]} Bf3 {[%emt 0:01:00]} 24. Qe3 {[%emt 0:00:07]} g5 {[%emt 0:00:29]} (24... Qc6 $142 25. Rac1 (25. Qxa7 Bh1 $16) 25... Qb7) 25. Qxa7 {[%emt 0:02:25]} Ba8 {[%emt 0:00:17]} 26. Qe3 {[%emt 0:00:40]} Qc6 {[%emt 0:00:04] [#]} 27. f3 $1 {[%emt 0:00:26]} ({And not} 27. Qxg5+ Kh8 28. Kf1 (28. Qe5+ f6 $17) (28. f3 $2 Qxf3 $19) 28... Qg2+ 29. Ke2 Re8+ 30. Kd2 Qxf2+ 31. Kd3 Qf3+ (31... Rxe1 32. Qd8+ Kg7 33. Rxe1 $11) 32. Re3 Be4+ 33. Kc3 Qf2 34. Rxe4 Rxe4 35. Qd8+ Kg7 36. Qg5+ Kf8 37. Qh6+ Ke7 38. Qg5+ Ke6 39. Qh6+ f6 (39... Ke7 40. Qg5+ Ke6 41. Qh6+ f6 42. Qh3+ Ke5 43. Qh5+ f5 44. Qe8+ Kf6 45. Qd8+ Kg6 46. Qd6+ Kh5 47. g4+ Rxg4 48. Qd5 $17) 40. Qh3+ (40. Qxh7 Qd4+ 41. Kb3 Re3+) 40... Ke5 41. Qh5+ (41. Qxh7 Qd4+ 42. Kb3 Re3+) 41... f5 42. Qe8+ Kf6 43. Qf8+ Kg6 44. Qd6+ Kh5 45. Qd1+ Re2 $11) 27... Qxf3 $2 {[%emt 0:00:16]} (27... h6 {is a better defense.} 28. h3 Qf6) 28. Qxf3 {[%emt 0:00:21] White is clearly winning.} (28. Qxg5+ $2 {too greedy.} Kh8 $19) 28... Bxf3 {[%emt 0:00:03]} 29. Re3 {[%emt 0:00:20]} g4 {[%emt 0:00:37]} 30. Rae1 {[%emt 0:00:43]} Bd5 {[%emt 0:00:06]} 31. a4 {[%emt 0:00:33][%cal Ba2a4,Ba4a5][%mdl 32]} Be6 {[%emt 0:00:03]} 32. a5 {[%emt 0:00:52] Weighted Error Value: White=0.06 (flawless) /Black=0.35.  Loses game:     	---       	Black=1      Mistake:       	White=1     	Black=3      Inaccurate:     	---       	Black=2      OK:         	White=11    	Black=6      Best:        	White=3     	Black=1      Strong:       	White=3     	---} 1-0

[Event "Romanian Superliga 2024"]
[Site "Mamaia"]
[Date "2024.09.30"]
[Round "3.2"]
[White "Raceanu, Valentin"]
[Black "Tarlev, Konstantin"]
[Result "1/2-1/2"]
[ECO "E49"]
[WhiteElo "2427"]
[BlackElo "2579"]
[Annotator "TA"]
[PlyCount "82"]
[EventDate "2024.09.26"]
[EventType "team-tourn"]
[EventCountry "ROU"]
[SourceTitle "playchess.com"]
[Source "ChessBase"]
[SourceQuality "1"]
[TimeControl "40/5400+30:1800+30"]

{[%evp 19,82,16,15,-18,0,-3,-4,-33,1,-32,-37,-50,-27,-82,-6,-6,-2,-16,-10,-31,-25,-24,-29,-70,-63,-64,-67,-81,-77,-79,-72,-81,-71,-72,-67,-100,-97,-110,-65,-68,-43,-76,-40,-40,-40,-41,-40,-40,-40,-41,-40,-41,-41,-47,-41,-41,-41,-44,-40,-40,-40,-40,0,-22,0]} 1. d4 {[%emt 0:01:39]} Nf6 {[%emt 0:00:03]} 2. c4 {[%emt 0:00:06]} e6 {[%emt 0:00:06]} 3. Nc3 {[%emt 0:00:07]} Bb4 {[%emt 0:00:06]} 4. e3 {[%emt 0:00:12]} O-O {[%emt 0:00:18]} 5. Bd3 {[%emt 0:00:24]} d5 {[%emt 0:03:36]} 6. Nge2 {[%emt 0:11:20]} dxc4 {[%emt 0:15:58]} 7. Bxc4 {[%emt 0:00:42]} c5 {[%emt 0:00:03]} 8. O-O {[%emt 0:15:35]} Nc6 {[%emt 0:08:21]} 9. a3 {[%emt 0:03:07]} Bxc3 {[%emt 0:01:12]} 10. bxc3 {[%emt 0:00:24]} Qc7 {[%emt 0:08:25]} 11. Bd3 {[%emt 0:14:43]} e5 {[%emt 0:01:38]} 12. Qc2 {[%emt 0:05:55]} Be6 {[%emt 0:05:12]} 13. Rb1 {[%emt 0:21:13]} Rac8 {[%emt 0:23:31]} (13... Rfd8 $5) 14. Bb2 {[%emt 0:07:37]} (14. Ng3 $5) 14... Qd7 {[%emt 0:09:06] Threatens to win with ...c4.} 15. Rbd1 {[%emt 0:07:42] Black must now prevent dxe5.} cxd4 {[%emt 0:14:50] Black wants to play ...Na5.} 16. cxd4 {[%emt 0:02:41] [#]} (16. Ng3 $11) 16... Nxd4 {[%emt 0:03:10]} 17. Qb1 $132 {[%emt 0:02:44][%mdl 2048] Strongly threatening Ng3. White is not keeping still} Nxe2+ {[%emt 0:00:03]} 18. Bxe2 {[%emt 0:00:03] This pair of bishops is nice.} Qc7 {[%emt 0:00:03]} 19. Qa1 {[%emt 0:01:18]} Nd7 {[%emt 0:00:15]} 20. Rc1 {[%emt 0:01:33]} Qb8 {[%emt 0:00:22]} 21. Bb5 {[%emt 0:00:15] aiming for Bxd7.} f6 {[%emt 0:00:09]} 22. Bxd7 {[%emt 0:00:31]} Bxd7 {[%emt 0:00:04]} 23. Qa2+ {[%emt 0:00:05]} Kh8 {[%emt 0:00:18]} 24. Rxc8 {[%emt 0:00:24]} Qxc8 {[%emt 0:00:51]} 25. Qb3 {[%emt 0:00:28]} Be6 {[%emt 0:03:27]} 26. Qa4 {[%emt 0:00:11]} a6 {[%emt 0:00:26]} 27. f4 {[%emt 0:00:54]} exf4 {[%emt 0:00:17]} 28. Rxf4 {[%emt 0:00:13]} Bd5 {[%emt 0:00:46]} 29. e4 {[%emt 0:01:01]} Bc6 {[%emt 0:00:27]} 30. Qc4 {[%emt 0:01:08]} h6 {[%emt 0:01:26]} 31. e5 {[%emt 0:00:44]} fxe5 {[%emt 0:00:09]} (31... f5 {keeps more tension.} 32. e6 Re8 33. Rxf5 Qxe6 34. Rf8+ Kh7) 32. Bxe5 {[%emt 0:00:10]} Rxf4 {[%emt 0:00:53]} 33. Qxf4 $15 {[%emt 0:00:06][%mdl 4096] Endgame. KQB-KQB} Kh7 {[%emt 0:00:28]} 34. Qd4 {[%emt 0:00:46]} Qf5 {[%emt 0:00:24]} 35. h3 {[%emt 0:00:44]} Qg5 {[%emt 0:00:56][%csl Gc6][%cal Rg5g2]} 36. Qd3+ {[%emt 0:00:23]} Kg8 {[%emt 0:00:26][%csl Gc6][%cal Rg5g2]} (36... Kh8 {simplifies} 37. Qg3 Qxg3 38. Bxg3 Kg8) 37. Qb3+ {[%emt 0:00:51]} Kh8 {[%emt 0:00:13]} 38. Qg3 {[%emt 0:00:25]} Qe7 {[%emt 0:00:04]} 39. Qe3 {[%emt 0:00:31]} Kg8 {[%emt 0:00:56]} 40. Qb3+ {[%emt 0:00:00]} Kh8 {[%emt 0:00:00]} 41. Qe3 {[%emt 0:01:29]} Kg8 {[%emt 0:07:04] Weighted Error Value: White=0.11 (very precise) /Black=0.11 (very precise) .  Mistake:       	White=1     	Black=1      Inaccurate:     	White=5     	Black=3      OK:         	White=9     	Black=13     Best:        	White=1     	---} 1/2-1/2

[Event "Romanian Superliga 2024"]
[Site "Mamaia"]
[Date "2024.09.30"]
[Round "3.3"]
[White "Serban, Cristian-Stefan"]
[Black "Filip, Andrei"]
[Result "1-0"]
[ECO "E68"]
[WhiteElo "2269"]
[BlackElo "2278"]
[Annotator "RC"]
[PlyCount "119"]
[EventDate "2024.09.26"]
[EventType "team-tourn"]
[EventCountry "ROU"]
[SourceTitle "playchess.com"]
[Source "ChessBase"]
[SourceQuality "1"]
[TimeControl "40/5400+30:1800+30"]

1. c4 {[%emt 0:00:05]} Nf6 {[%emt 0:00:22]} 2. g3 {[%emt 0:00:09]} g6 {[%emt 0:00:37]} 3. Bg2 {[%emt 0:00:08]} Bg7 {[%emt 0:00:08]} 4. Nc3 {[%emt 0:00:06]} d6 {[%emt 0:00:29]} 5. d4 {[%emt 0:00:08]} O-O {[%emt 0:00:10]} 6. h3 {[%emt 0:00:06]} Nbd7 {[%emt 0:02:21]} 7. Nf3 {[%emt 0:00:24]} e5 {[%emt 0:00:27]} 8. e4 {[%emt 0:00:05]} exd4 {[%emt 0:00:52]} 9. Nxd4 {[%emt 0:00:05]} Re8 {[%emt 0:00:15]} 10. O-O {[%emt 0:00:07]} a6 {[%emt 0:00:18]} 11. Re1 {[%emt 0:03:20]} Rb8 {[%emt 0:03:20]} 12. b3 {[%emt 0:09:45]} Nf8 {[%emt 0:06:49]} 13. Be3 {[%emt 0:10:17]} c5 {[%emt 0:04:50]} 14. Nde2 {[%emt 0:03:32]} b5 {[%emt 0:02:27]} 15. Qd3 {[%emt 0:03:59]} b4 {[%emt 0:15:13]} 16. Na4 {[%emt 0:00:16]} Bd7 {[%emt 0:05:53]} 17. Rad1 {[%emt 0:04:18]} Bxa4 {[%emt 0:02:57]} 18. bxa4 {[%emt 0:00:06]} Qa5 {[%emt 0:07:02]} 19. Qc2 {[%emt 0:01:17]} N6d7 {[%emt 0:08:34]} 20. Rf1 {[%emt 0:19:47]} Nb6 {[%emt 0:02:45]} 21. Rxd6 {[%emt 0:00:14]} Nxa4 {[%emt 0:01:00]} 22. f4 {[%emt 0:00:31]} Nc3 {[%emt 0:08:49]} 23. Rd2 {[%emt 0:00:05]} Nxe2+ {[%emt 0:02:08]} 24. Rxe2 {[%emt 0:00:05]} Bc3 {[%emt 0:00:42]} 25. e5 {[%emt 0:02:15]} Ne6 {[%emt 0:01:51]} 26. Bd5 {[%emt 0:02:41]} Nc7 {[%emt 0:04:17]} 27. Be4 {[%emt 0:07:26]} Qb6 {[%emt 0:01:56]} 28. h4 {[%emt 0:03:08]} Rbd8 {[%emt 0:04:25]} 29. h5 {[%emt 0:00:25]} Qe6 {[%emt 0:05:01]} 30. hxg6 {[%emt 0:10:25]} hxg6 {[%emt 0:00:21]} 31. f5 {[%emt 0:00:39]} Qxe5 {[%emt 0:01:09]} 32. Bf4 {[%emt 0:00:03]} Qd4+ {[%emt 0:00:34]} 33. Kh1 {[%emt 0:00:08]} Qd7 {[%emt 0:05:13]} 34. Bxc7 {[%emt 0:04:36]} Qxc7 {[%emt 0:00:10]} 35. fxg6 {[%emt 0:00:04]} f6 {[%emt 0:00:31]} 36. Rh2 {[%emt 0:01:55]} Qe5 {[%emt 0:02:14]} 37. Rh8+ {[%emt 0:09:50]} Kg7 {[%emt 0:00:05]} 38. Rh7+ {[%emt 0:00:05]} Kg8 {[%emt 0:00:10]} 39. Rh8+ {[%emt 0:02:01]} Kg7 {[%emt 0:00:07]} 40. Rh7+ {[%emt 0:00:00]} Kg8 {[%emt 0:00:00]} 41. Bd5+ {[%emt 0:07:11]} Rxd5 {[%emt 0:01:18]} 42. cxd5 {[%emt 0:00:19]} Qxd5+ {[%emt 0:02:48]} 43. Kh2 {[%emt 0:00:30]} Bd2 {[%emt 0:17:25]} 44. Qd1 {[%emt 0:03:57]} Re5 {[%emt 0:06:29]} 45. Qg4 {[%emt 0:04:09]} Qe6 {[%emt 0:01:25]} 46. Qxe6+ {[%emt 0:01:29]} Rxe6 {[%emt 0:00:06]} 47. Rf5 {[%emt 0:00:38]} Be3 {[%emt 0:02:31]} 48. Rd5 {[%emt 0:02:24]} Re8 {[%emt 0:00:05]} 49. Rc7 {[%emt 0:01:08]} Bd4 {[%emt 0:00:27]} 50. Rdd7 {[%emt 0:00:54]} f5 {[%emt 0:00:07]} 51. Rf7 {[%emt 0:00:29]} a5 {[%emt 0:01:30]} 52. Rxf5 {[%emt 0:04:25]} a4 {[%emt 0:01:01]} 53. g7 {[%emt 0:00:24]} b3 {[%emt 0:00:47]} 54. axb3 {[%emt 0:00:10]} axb3 {[%emt 0:00:17]} 55. Rh5 {[%emt 0:00:24]} Bxg7 {[%emt 0:00:12]} 56. Rg5 {[%emt 0:00:07]} b2 {[%emt 0:00:23]} 57. Rgxg7+ {[%emt 0:00:03]} Kh8 {[%emt 0:00:14]} 58. Rh7+ {[%emt 0:00:02]} Kg8 {[%emt 0:00:05]} 59. Rcg7+ {[%emt 0:00:03]} Kf8 {[%emt 0:00:07]} 60. Rb7 {[%emt 0:00:04]} 1-0